bitfinex-derivatives/quotes_BTCF0:USTF0_20251204
["timestamp","ask_amount","ask_price","bid_price","bid_amount"]
[1764810308288,0.18097,93224.0,93223.0,0.2040449]
[1764810308483,0.21097,93224.0,93223.0,0.2040449]
[1764810308992,0.21097,93224.0,93223.0,0.31032786]
[1764810309186,0.26615,93224.0,93223.0,0.29960296]
[1764810309690,0.26615,93224.0,93223.0,0.19859296]
[1764810309878,0.26615,93224.0,93223.0,0.10628296]
[1764810310082,0.18097,93221.0,93220.0,0.59063]
[1764810310282,0.21097,93221.0,93220.0,0.59063]
[1764810310491,0.21097,93221.0,93220.0,0.6096411]
[1764810310685,0.21097,93221.0,93220.0,0.0190111]
[1764810310989,0.1916957,93217.0,93216.0,0.2040457]
[1764810311189,0.21097,93217.0,93216.0,0.2040457]
[1764810311389,0.21097,93217.0,93216.0,0.2878261]
[1764810311789,0.21097,93217.0,93216.0,0.0837804]
[1764810312094,0.21097,93217.0,93216.0,0.09231]
[1764810312401,0.21097,93217.0,93216.0,0.19332]
[1764810312783,0.21097,93217.0,93216.0,0.21229464]
[1764810312982,0.21097,93217.0,93216.0,0.31229464]
[1764810313284,0.21097,93217.0,93216.0,0.02397464]
[1764810314285,0.21097,93217.0,93216.0,0.01897464]
[1764810314486,0.21097,93217.0,93216.0,0.004]
[1764810314682,0.21097,93217.0,93216.0,0.02261396]
[1764810314888,0.21097,93217.0,93216.0,0.09928654]
[1764810315089,0.21097,93217.0,93216.0,0.02261396]
[1764810315282,0.21097,93217.0,93216.0,0.09928654]
[1764810316096,0.21097,93217.0,93216.0,0.02161396]
[1764810316994,0.21097,93217.0,93216.0,0.01861396]
[1764810317182,0.21097,93217.0,93216.0,0.003]
[1764810317581,0.1916958,93216.0,93215.0,0.07667258]
[1764810317781,0.2216958,93216.0,93215.0,0.07667258]
[1764810318182,0.18097,93215.0,93214.0,0.07680654]
[1764810318389,0.21097,93215.0,93214.0,0.07680654]
[1764810318787,0.21097,93215.0,93214.0,0.28085254]
[1764810319294,0.21097,93215.0,93214.0,0.20420685]
[1764810319592,0.21097,93215.0,93214.0,0.30017033]
[1764810319799,0.21097,93215.0,93214.0,0.18843433]
[1764810319996,0.21097,93215.0,93214.0,0.21681484]
[1764810320187,0.21097,93215.0,93214.0,0.29344433]
[1764810320796,0.03,93215.0,93214.0,0.21681484]
[1764810321183,0.05,93225.0,93214.0,0.26801234]
[1764810321387,0.22097,93225.0,93224.0,0.19332]
[1764810322291,0.22097,93225.0,93224.0,0.2040449]
[1764810322482,0.22097,93225.0,93224.0,0.3040449]
[1764810322688,0.04,93225.0,93224.0,0.3040449]
[1764810323292,0.04,93225.0,93224.0,0.3060449]
[1764810324295,0.1916926,93244.0,93243.0,0.2040425]
[1764810324598,0.2216926,93244.0,93243.0,0.19332]
[1764810324786,0.1916931,93239.0,93238.0,0.2040433]
[1764810324985,0.2216931,93239.0,93238.0,0.28059713]
[1764810325190,0.2216931,93239.0,93238.0,0.26987383]
[1764810325803,0.2216931,93239.0,93238.0,0.07655383]
[1764810326093,0.2216931,93239.0,93229.0,0.53529218]
[1764810326094,0.18097,93230.0,93229.0,0.53529218]
[1764810326296,0.21097,93230.0,93229.0,0.19348085]
[1764810326495,0.21097,93230.0,93229.0,0.00016085]
[1764810327293,0.21097,93230.0,93229.0,0.05862744]
[1764810327600,0.21097,93230.0,93229.0,0.00116085]
[1764810328797,0.23615,93216.0,93215.0,0.07658665]
[1764810329102,0.1916959,93215.0,93214.0,0.01933399]
[1764810329399,0.18097,93207.0,93206.0,0.30012598]
[1764810329589,0.21097,93207.0,93206.0,0.319658]
[1764810329790,0.21097,93207.0,93206.0,0.40397076]
[1764810330594,0.21097,93207.0,93206.0,0.40797076]
[1764810331101,0.00016085,93216.0,93215.0,0.2040459]
[1764810331293,0.03016085,93216.0,93215.0,0.2040459]
[1764810332190,0.05518,93264.0,93225.0,0.19332]
[1764810332391,0.2868712,93256.0,93255.0,0.19332]
[1764810332686,0.2868712,93256.0,93255.0,0.27000837]
[1764810332886,0.18097,93247.0,93246.0,0.50209321]
[1764810333096,0.21097,93247.0,93246.0,0.29981502]
[1764810333297,0.03,93247.0,93246.0,0.3040423]
[1764810333890,0.03,93247.0,93246.0,0.3080423]
[1764810334090,0.05518,93264.0,93246.0,0.3080423]
[1764810334091,0.25225,93264.0,93263.0,0.1112204]
[1764810334300,0.28225,93264.0,93263.0,0.2180404]
[1764810336589,0.22707,93264.0,93263.0,0.3180404]
[1764810337599,0.22707,93264.0,93263.0,0.2180404]
[1764810339603,0.03,93264.0,93263.0,0.2180404]
[1764810339808,0.12473,93264.0,93263.0,0.2180404]
[1764810340602,0.12473,93264.0,93263.0,0.3180404]
[1764810340798,0.03,93264.0,93263.0,0.3180404]
[1764810342704,0.05,93274.0,93273.0,0.20732]
[1764810342902,0.25225,93280.0,93279.0,0.2180385]
[1764810343117,0.22707,93280.0,93279.0,0.2180385]
[1764810343302,0.03,93280.0,93279.0,0.2180385]
[1764810343501,0.22707,93280.0,93279.0,0.2180385]
[1764810343694,0.28841,93280.0,93279.0,0.2180385]
[1764810344303,0.28841,93280.0,93279.0,0.3180385]
[1764810344498,0.22707,93280.0,93279.0,0.3180385]
[1764810344704,0.03,93280.0,93279.0,0.6880385]
[1764810345005,0.28228,93280.0,93279.0,0.5880385]
[1764810345309,0.28228,93280.0,93279.0,0.57732]
[1764810345500,0.28428,93280.0,93279.0,0.57732]
[1764810346210,0.22618,93280.0,93279.0,0.67732]
[1764810347506,0.28428,93280.0,93279.0,0.57732]
[1764810347707,0.28428,93280.0,93279.0,0.37]
[1764810348911,0.28428,93280.0,93279.0,0.56376]
[1764810349296,0.28428,93280.0,93279.0,0.6209406]
[1764810350407,0.032,93280.0,93279.0,0.6209406]
[1764810350604,0.032,93280.0,93279.0,0.56376]
[1764810351209,0.032,93280.0,93279.0,0.66376]
[1764810352912,0.032,93280.0,93279.0,1.16224]
[1764810353412,0.00026799,93286.0,93285.0,0.2044778]
[1764810353715,0.22444799,93286.0,93285.0,0.6144778]
[1764810354617,0.22444799,93286.0,93285.0,0.7144778]
[1764810354805,0.22444799,93286.0,93285.0,0.70150532]
[1764810355615,0.22444799,93286.0,93285.0,0.70250532]
[1764810355909,0.22444799,93286.0,93285.0,0.80250532]
[1764810358411,0.12844799,93286.0,93285.0,0.80250532]
[1764810358808,0.22444799,93286.0,93285.0,0.80250532]
[1764810360108,0.03026799,93286.0,93285.0,0.80250532]
[1764810360711,0.22444799,93286.0,93285.0,0.70250532]
[1764810361112,0.22444799,93286.0,93285.0,0.75965924]
[1764810362016,0.23516569,93286.0,93285.0,0.69178752]
[1764810362420,0.22444799,93286.0,93285.0,0.69178752]
[1764810363418,0.12844799,93286.0,93285.0,0.79178752]
[1764810363724,0.03026799,93286.0,93285.0,0.79178752]
[1764810364821,0.13168799,93286.0,93285.0,0.79178752]
[1764810365020,0.22758799,93286.0,93285.0,0.79178752]
[1764810365423,0.03026799,93286.0,93285.0,0.79178752]
[1764810367138,0.25866,93304.0,93303.0,0.1990058]
[1764810367428,0.28866,93304.0,93303.0,0.6090058]
[1764810368220,0.28866,93304.0,93303.0,0.7090058]
[1764810368727,0.28866,93304.0,93303.0,0.6090058]
[1764810369023,0.2993757,93304.0,93303.0,0.42715296]
[1764810369430,0.2993757,93304.0,93303.0,0.61544296]
[1764810370024,0.2993757,93304.0,93303.0,0.42715296]
[1764810371724,0.2993757,93304.0,93303.0,0.27936296]
[1764810372023,0.2993757,93304.0,93303.0,0.01715296]
[1764810372229,0.2993757,93304.0,93294.0,0.00016085]
[1764810372230,0.2080367,93295.0,93294.0,0.00016085]
[1764810372427,0.2380367,93295.0,93294.0,0.29016085]
[1764810373136,0.2380367,93295.0,93294.0,0.30716735]
[1764810374734,0.2380367,93295.0,93294.0,0.01716735]
[1764810374735,0.6380367,93295.0,93294.0,0.01716735]
[1764810374939,0.6380367,93295.0,93287.0,0.07653639]
[1764810374940,0.19732,93288.0,93287.0,0.07653639]
[1764810375135,0.2817,93288.0,93287.0,0.29]
[1764810375327,0.2817,93288.0,93287.0,0.30716134]
[1764810376338,0.2817,93288.0,93287.0,0.49645134]
[1764810376730,0.2817,93288.0,93287.0,0.49069233]
[1764810377029,0.2817,93288.0,93287.0,0.58086233]
[1764810377330,0.22732,93288.0,93287.0,0.58086233]
[1764810378242,0.22732,93288.0,93287.0,0.46910872]
[1764810378532,0.22732,93288.0,93287.0,0.56722872]
[1764810378733,0.22732,93288.0,93287.0,0.65739872]
[1764810384538,0.22732,93288.0,93287.0,0.58086233]
[1764810384739,0.13142,93288.0,93287.0,0.58086233]
[1764810385041,0.0274757,93288.0,93287.0,1.17898233]
[1764810385240,0.06870085,93297.0,93296.0,0.2521766]
[1764810385433,0.09870085,93297.0,93296.0,0.6621766]
[1764810385635,0.03016085,93297.0,93296.0,0.6621766]
[1764810386240,0.13158085,93297.0,93296.0,0.6621766]
[1764810386545,0.22748085,93297.0,93296.0,0.6621766]
[1764810387047,0.22748085,93297.0,93296.0,0.59829]
[1764810390543,0.22748085,93297.0,93296.0,0.50812]
[1764810392048,0.22748085,93297.0,93296.0,0.41]
[1764810392347,0.2080373,93290.0,93289.0,0.246741]
[1764810392542,0.2380373,93290.0,93289.0,0.43]
[1764810392742,0.2380373,93290.0,93289.0,0.60472503]
[1764810393147,0.2380373,93290.0,93289.0,0.69489503]
[1764810393649,0.2380373,93290.0,93289.0,0.69589503]
[1764810394557,0.2380373,93290.0,93289.0,0.431]
[1764810395737,0.2380373,93290.0,93289.0,0.001]
[1764810395941,0.2380373,93290.0,93289.0,0.391]
[1764810396546,0.2380373,93290.0,93287.0,0.01716134]
[1764810396754,0.24637,93282.0,93281.0,0.07660503]
[1764810396942,0.2870882,93282.0,93281.0,0.4]
[1764810397955,0.2870882,93282.0,93281.0,0.402]
[1764810398343,0.2870882,93282.0,93281.0,0.41770301]
[1764810398544,0.2870882,93282.0,93281.0,0.41870301]
[1764810399149,0.2870882,93282.0,93281.0,0.5028108]
[1764810401449,0.2870882,93282.0,93281.0,0.41870301]
[1764810403656,0.2870882,93282.0,93281.0,0.41770301]
[1764810405254,0.2870882,93282.0,93281.0,0.17770301]
[1764810405857,0.2870882,93282.0,93281.0,0.01770301]
[1764810406154,0.2870882,93282.0,93281.0,0.36]
[1764810406357,0.2870882,93282.0,93281.0,0.54371]
[1764810406756,0.2870882,93282.0,93281.0,0.56174568]
[1764810406957,0.2870882,93282.0,93281.0,0.47020568]
[1764810407154,0.2275682,93282.0,93281.0,0.56174568]
[1764810413167,0.03,93282.0,93281.0,0.67246398]
[1764810413366,0.03,93282.0,93281.0,0.57246398]
[1764810414567,0.03,93282.0,93281.0,0.67246398]
[1764810416665,0.03,93282.0,93281.0,1.11798733]
[1764810416866,0.03,93282.0,93281.0,0.71798733]
[1764810417365,0.03,93282.0,93281.0,0.71758877]
[1764810417766,0.08085,93290.0,93289.0,0.1944274]
[1764810418065,0.00016085,93297.0,93296.0,0.1944266]
[1764810418266,0.03016085,93297.0,93296.0,0.6044266]
[1764810419158,0.03016085,93297.0,93296.0,0.7044266]
[1764810419865,0.03016085,93297.0,93296.0,0.6044266]
[1764810420769,0.03016085,93297.0,93296.0,0.7044266]
[1764810426059,0.0107143,93317.0,93316.0,0.18932]
[1764810426261,0.2336343,93317.0,93316.0,0.59932]
[1764810426456,0.2036351,93309.0,93308.0,0.04569148]
[1764810426662,0.2036357,93304.0,93303.0,0.18932]
[1764810426865,0.2336357,93304.0,93303.0,0.55932]
[1764810428358,0.2336357,93304.0,93303.0,0.37309651]
[1764810428559,0.2336357,93304.0,93303.0,0.19]
[1764810428966,0.0407157,93304.0,93303.0,0.46297943]
[1764810429164,0.0407157,93304.0,93303.0,0.63297943]
[1764810429367,0.1403357,93304.0,93303.0,0.70939213]
[1764810429567,0.12962,93304.0,93303.0,0.70939213]
[1764810429767,0.03,93304.0,93303.0,0.63297943]
[1764810429962,0.03,93304.0,93303.0,0.67782016]
[1764810430168,0.03,93304.0,93303.0,0.63297943]
[1764810430660,0.03,93304.0,93303.0,0.73297943]
[1764810430865,0.03,93304.0,93303.0,0.63297943]
[1764810432175,0.03,93304.0,93303.0,0.73297943]
[1764810433878,0.03,93304.0,93303.0,0.82858241]
[1764810435176,0.09219,93313.0,93312.0,0.2264047]
[1764810435370,0.12219,93313.0,93312.0,0.6464047]
[1764810435565,0.03,93313.0,93312.0,0.6464047]
[1764810436278,0.03,93313.0,93312.0,0.7464047]
[1764810437972,0.12962,93313.0,93312.0,0.7464047]
[1764810438476,0.03,93313.0,93312.0,0.7464047]
[1764810440176,0.22292,93313.0,93312.0,0.7464047]
[1764810440379,0.22292,93313.0,93312.0,0.7200347]
[1764810440582,0.22292,93313.0,93312.0,0.61032]
[1764810442580,0.22292,93313.0,93312.0,0.68675686]
[1764810444374,0.22292,93313.0,93303.0,0.5206568]
[1764810444375,0.0107151,93309.0,93308.0,0.07643686]
[1764810444570,0.2036357,93304.0,93303.0,0.08365943]
[1764810444770,0.2582061,93300.0,93298.0,0.07643686]
[1764810444981,0.2036364,93298.0,93297.0,0.07643686]
[1764810445182,0.2336364,93298.0,93297.0,0.43643686]
[1764810445382,0.2336364,93298.0,93297.0,0.36]
[1764810446277,0.2336364,93298.0,93297.0,0.446502]
[1764810446582,0.2336364,93298.0,93297.0,0.545142]
[1764810447177,0.2336364,93298.0,93297.0,0.635822]
[1764810449181,0.2336364,93298.0,93297.0,0.086502]
[1764810449483,0.2036367,93295.0,93294.0,0.17523762]
[1764810449697,0.2336367,93295.0,93294.0,0.66591762]
[1764810450878,0.2336367,93295.0,93294.0,0.66691762]
[1764810451586,0.2336367,93295.0,93294.0,0.75359376]
[1764810452384,0.2336367,93295.0,93294.0,0.75270166]
[1764810452584,0.2336367,93295.0,93294.0,0.75370166]
[1764810453186,0.03,93295.0,93294.0,0.6771569]
[1764810453386,0.03,93295.0,93294.0,0.75370166]
[1764810453890,0.03,93295.0,93294.0,0.6761569]
[1764810454094,0.03,93295.0,93294.0,0.6771569]
[1764810454481,0.03,93295.0,93294.0,0.6761569]
[1764810454691,0.03,93295.0,93294.0,0.6771569]
[1764810456881,0.12602,93295.0,93294.0,0.6771569]
[1764810457077,0.03,93295.0,93294.0,0.6771569]
[1764810457296,0.12602,93295.0,93294.0,0.6771569]
[1764810457591,0.03,93295.0,93294.0,0.6771569]
[1764810458296,0.03,93295.0,93294.0,0.7352769]
[1764810460686,0.05,93305.0,93304.0,0.1989957]
[1764810460886,0.0107154,93306.0,93305.0,0.18828]
[1764810461090,0.0407154,93306.0,93305.0,0.56828]
[1764810461890,0.03,93306.0,93305.0,0.66828]
[1764810462193,0.03,93306.0,93305.0,0.56828]
[1764810463298,0.03,93306.0,93305.0,0.66828]
[1764810464093,0.031,93306.0,93305.0,0.66828]
[1764810464592,0.2477343,93316.0,93315.0,0.18828]
[1764810464795,0.2277343,93316.0,93315.0,0.55828]
[1764810465491,0.1356843,93316.0,93315.0,0.55828]
[1764810465694,0.03,93316.0,93315.0,0.6689944]
[1764810465894,0.03,93316.0,93315.0,0.64546268]
[1764810466093,0.03,93316.0,93315.0,0.63474828]
[1764810466397,0.21702,93316.0,93315.0,0.55828]
[1764810467597,0.21802,93316.0,93315.0,0.55828]
[1764810468797,0.21802,93316.0,93315.0,0.37]
[1764810469092,0.21802,93316.0,93315.0,0.59828]
[1764810469898,0.09922,93321.0,93320.0,0.2989938]
[1764810470087,0.12922,93321.0,93320.0,0.5889938]
[1764810470598,0.22419,93321.0,93320.0,0.5889938]
[1764810471390,0.31624,93321.0,93320.0,0.5889938]
[1764810472491,0.12922,93321.0,93320.0,0.5889938]
[1764810473804,0.12922,93321.0,93320.0,0.66550209]
[1764810476198,0.12922,93321.0,93320.0,0.5889938]
[1764810478598,0.03,93321.0,93320.0,0.5889938]
[1764810478798,0.03,93321.0,93320.0,0.66550209]
[1764810480411,0.12497,93321.0,93320.0,0.66550209]
[1764810480608,0.21702,93321.0,93320.0,0.60828]
[1764810480903,0.21702,93321.0,93320.0,0.66566842]
[1764810481504,0.21702,93321.0,93320.0,0.33566842]
[1764810481709,0.21702,93321.0,93320.0,0.14738842]
[1764810482008,0.1977338,93320.0,93319.0,0.05738842]
[1764810482308,0.2277338,93320.0,93319.0,0.42738842]
[1764810484214,0.2277338,93320.0,93319.0,0.37]
[1764810485305,0.2571647,93312.0,93311.0,0.18166]
[1764810485506,0.2871647,93312.0,93311.0,0.60166]
[1764810487423,0.2871647,93312.0,93311.0,0.42]
[1764810488020,0.2003551,93309.0,93308.0,0.16697829]
[1764810488326,0.2303551,93309.0,93308.0,0.51047]
[1764810488512,0.106086,93301.0,93299.0,0.09558049]
[1764810488721,0.230356,93301.0,93300.0,0.52047]
[1764810488916,0.230356,93301.0,93300.0,0.5971086]
[1764810489517,0.230356,93301.0,93300.0,0.6882986]
[1764810489717,0.230356,93301.0,93300.0,0.5971086]
[1764810490220,0.230356,93301.0,93300.0,0.5991086]
[1764810491828,0.230356,93301.0,93300.0,0.61366]
[1764810495526,0.03,93301.0,93300.0,0.61366]
[1764810495730,0.03,93301.0,93300.0,0.66315]
[1764810497020,0.05,93311.0,93310.0,0.18166]
[1764810497218,0.0107144,93315.0,93314.0,0.18166]
[1764810497417,0.0407144,93315.0,93314.0,0.61166]
[1764810497825,0.03,93315.0,93314.0,0.61166]
[1764810498732,0.03,93315.0,93314.0,0.68822738]
[1764810498935,0.03,93315.0,93314.0,0.61166]
[1764810502536,0.00337,93325.0,93324.0,0.1652]
[1764810502836,0.00215856,93335.0,93334.0,0.0107122]
[1764810503035,0.0107104,93350.0,93347.0,0.0107107]
[1764810503235,0.18218,93348.0,93347.0,0.4407107]
[1764810503429,0.03,93348.0,93347.0,0.4407107]
[1764810504530,0.12537,93348.0,93347.0,0.4407107]
[1764810504734,0.21964,93348.0,93347.0,0.4407107]
[1764810505144,0.03,93348.0,93347.0,0.5407107]
[1764810505333,0.03,93348.0,93347.0,0.4407107]
[1764810505532,0.03,93348.0,93347.0,0.52582125]
[1764810505734,0.03,93348.0,93347.0,0.52982125]
[1764810507032,0.21964,93348.0,93347.0,0.52982125]
[1764810507734,0.21964,93348.0,93347.0,0.51911055]
[1764810512744,0.21964,93348.0,93347.0,0.08911055]
[1764810512939,0.21964,93348.0,93347.0,0.004]
[1764810513147,0.2003516,93339.0,93338.0,0.00016076]
[1764810513344,0.2303516,93339.0,93338.0,0.34016076]
[1764810513842,0.2303516,93339.0,93338.0,0.42740433]
[1764810514637,0.2303516,93339.0,93338.0,0.43240433]
[1764810517746,0.2303516,93339.0,93338.0,0.03000003]
[1764810517943,0.18519,93318.0,93308.0,0.07648525]
[1764810518142,0.18519,93318.0,93290.0,0.19127429]
[1764810518143,0.18519,93298.0,93297.0,0.04602264]
[1764810518349,0.2259064,93298.0,93297.0,0.41602264]
[1764810518748,0.1959072,93291.0,93290.0,0.21310282]
[1764810518949,0.2259072,93291.0,93290.0,0.4234]
[1764810519147,0.22600333,93291.0,93290.0,0.4234]
[1764810520957,0.22600333,93291.0,93290.0,0.4254]
[1764810522555,0.22600333,93291.0,93290.0,0.362]
[1764810524750,0.22600333,93291.0,93290.0,0.002]
[1764810526959,0.22600333,93291.0,93288.0,0.00016076]
[1764810526960,0.2212476,93287.0,93286.0,0.00026799]
[1764810527255,0.2512476,93287.0,93286.0,0.00026799]
[1764810528753,0.2512476,93287.0,93286.0,0.00126799]
[1764810530251,0.2875382,93282.0,93281.0,0.01803568]
[1764810530569,0.2212487,93278.0,93277.0,0.00016076]
[1764810530856,0.2512487,93278.0,93277.0,0.00016076]
[1764810531160,0.0107206,93261.0,93260.0,0.21310282]
[1764810531369,0.3175406,93261.0,93260.0,0.06372]
[1764810532362,0.3175406,93261.0,93260.0,0.16372]
[1764810532561,0.3175406,93261.0,93260.0,0.18063768]
[1764810533258,0.3176512,93261.0,93260.0,0.04877768]
[1764810533561,0.3186512,93261.0,93260.0,0.08063768]
[1764810535058,0.3186512,93261.0,93260.0,0.01691768]
[1764810535252,0.21053,93260.0,93259.0,0.00011445]
[1764810535454,0.24053,93260.0,93259.0,0.06383445]
[1764810535855,0.24053,93260.0,93259.0,0.04856424]
[1764810536056,0.24053,93260.0,93259.0,0.01670424]
[1764810536962,0.24153,93260.0,93259.0,0.08142424]
[1764810538853,0.24153,93260.0,93259.0,0.09214504]
[1764810538854,0.031,93260.0,93259.0,0.09214504]
[1764810539159,0.03,93260.0,93259.0,0.09214504]
[1764810539355,0.0001106,93261.0,93260.0,0.06372]
[1764810539555,0.0301106,93261.0,93260.0,0.06372]
[1764810540556,0.01087846,93287.0,93286.0,0.05282]
[1764810540761,0.25140846,93287.0,93286.0,0.05282]
[1764810541663,0.26240846,93287.0,93286.0,0.05382]
[1764810542367,0.26240846,93287.0,93286.0,0.08984083]
[1764810542568,0.26240846,93287.0,93286.0,0.002]
[1764810543158,0.26240846,93287.0,93286.0,0.02841]
[1764810543571,0.25240846,93287.0,93286.0,0.02741]
[1764810543868,0.25240846,93287.0,93286.0,0.001]
[1764810544266,0.2219587,93278.0,93277.0,0.00016076]
[1764810544569,0.2519587,93278.0,93277.0,0.02162076]
[1764810544963,0.2519587,93278.0,93277.0,0.00016076]
[1764810545364,0.2519587,93278.0,93277.0,0.00116076]
[1764810546568,0.2519587,93278.0,93277.0,0.00216076]
[1764810548769,0.2519587,93278.0,93277.0,0.05955348]
[1764810548971,0.2519587,93278.0,93277.0,0.00216076]
[1764810549767,0.2219598,93268.0,93267.0,0.0763]
[1764810549973,0.21124,93267.0,93266.0,0.0763]
[1764810550175,0.24124,93267.0,93266.0,0.0763]
[1764810550373,0.22196,93266.0,93265.0,0.08613718]
[1764810550669,0.27188,93264.0,93263.0,0.0763]
[1764810550873,0.30188,93264.0,93263.0,0.0763]
[1764810551173,0.30188,93264.0,93263.0,0.23832]
[1764810551970,0.30188,93264.0,93263.0,0.16202]
[1764810552166,0.30188,93264.0,93263.0,0.2480476]
[1764810552671,0.30388,93264.0,93263.0,0.2480476]
[1764810553171,0.30388,93264.0,93263.0,0.3243476]
[1764810553473,0.30388,93264.0,93263.0,0.2480476]
[1764810554375,0.30388,93264.0,93263.0,0.3243476]
[1764810555572,0.30388,93264.0,93262.0,0.0763]
[1764810555573,0.2219604,93263.0,93262.0,0.0763]
[1764810555877,0.21124,93260.0,93256.0,0.07646076]
[1764810556075,0.24124,93260.0,93256.0,0.00016076]
[1764810557467,0.24324,93260.0,93256.0,0.00016076]
[1764810559279,0.21124,93257.0,93256.0,0.00016076]
[1764810559492,0.24124,93257.0,93256.0,0.01664078]
[1764810560192,0.24124,93257.0,93256.0,0.09765078]
[1764810560376,0.24233532,93257.0,93256.0,0.09765078]
[1764810560875,0.03109532,93257.0,93256.0,0.18938198]
[1764810561073,0.03109532,93257.0,93256.0,0.26568198]
[1764810561278,0.03109532,93257.0,93256.0,0.18938198]
[1764810562086,0.03009532,93257.0,93256.0,0.29038198]
[1764810562683,0.03009532,93257.0,93256.0,0.29338198]
[1764810563585,0.00016085,93266.0,93265.0,0.1727401]
[1764810563779,0.03016085,93266.0,93265.0,0.1727401]
[1764810564183,0.03016085,93266.0,93265.0,0.26841491]
[1764810564693,0.03016085,93266.0,93265.0,0.36841491]
[1764810564882,0.03016085,93266.0,93265.0,0.36941491]
[1764810565084,0.05,93276.0,93275.0,0.172739]
[1764810565388,0.05,93286.0,93285.0,0.1727378]
[1764810565587,0.05,93296.0,93295.0,0.16202]
[1764810565786,0.1145464,93298.0,93297.0,0.16202]
[1764810566088,0.2519564,93298.0,93297.0,0.16202]
[1764810567289,0.24124,93298.0,93297.0,0.1727365]
[1764810568088,0.24224,93298.0,93297.0,0.1727365]
[1764810568596,0.24224,93298.0,93297.0,0.24644753]
[1764810568893,0.24624,93298.0,93297.0,0.08442753]
[1764810569093,0.21124,93294.0,93293.0,0.07649058]
[1764810569294,0.2219569,93293.0,93292.0,0.15750058]
[1764810569493,0.2519569,93293.0,93292.0,0.15750058]
[1764810569700,0.2519569,93293.0,93292.0,0.23851058]
[1764810569891,0.2519569,93293.0,93292.0,0.16572495]
[1764810570586,0.2529569,93293.0,93292.0,0.16572495]
[1764810571595,0.24224,93293.0,93292.0,0.24673495]
[1764810571895,0.24124,93293.0,93292.0,0.24673495]
[1764810572096,0.24224,93293.0,93292.0,0.24673495]
[1764810572496,0.24124,93293.0,93292.0,0.24673495]
[1764810572689,0.24224,93293.0,93292.0,0.24673495]
[1764810572895,0.24224,93293.0,93292.0,0.08471495]
[1764810573095,0.21124,93289.0,93288.0,0.00016085]
[1764810573294,0.24124,93289.0,93288.0,0.00016085]
[1764810573593,0.24124,93289.0,93288.0,0.08117085]
[1764810574301,0.24124,93289.0,93288.0,0.00016085]
[1764810575301,0.24124,93289.0,93288.0,0.14612085]
[1764810575504,0.24224,93289.0,93288.0,0.14612085]
[1764810575996,0.2519574,93289.0,93288.0,0.14612085]
[1764810576203,0.2539574,93289.0,93288.0,0.07314085]
[1764810576498,0.2519574,93289.0,93288.0,0.07314085]
[1764810576690,0.2539574,93289.0,93288.0,0.07314085]
[1764810580299,0.3112574,93289.0,93288.0,0.00016085]
[1764810581996,0.3112574,93289.0,93288.0,0.05744498]
[1764810582298,0.3112574,93289.0,93288.0,0.00016085]
[1764810584700,0.3112574,93289.0,93288.0,0.30016085]
[1764810584891,0.19918,93285.0,93283.0,0.05728413]
[1764810585094,0.19918,93284.0,93283.0,0.48728413]
[1764810585293,0.239898,93284.0,93283.0,0.43]
[1764810585498,0.19918,93281.0,93280.0,0.05728413]
[1764810585694,0.22918,93281.0,93280.0,0.29]
[1764810586308,0.22918,93281.0,93280.0,0.34728413]
[1764810587007,0.22918,93281.0,93280.0,0.34828413]
[1764810587405,0.22918,93281.0,93280.0,0.021]
[1764810587610,0.19918,93266.0,93265.0,0.07649058]
[1764810587811,0.2099004,93263.0,93262.0,0.16249337]
[1764810588113,0.2399004,93263.0,93262.0,0.38]
[1764810588306,0.2399004,93263.0,93262.0,0.46421053]
[1764810588506,0.2399004,93263.0,93262.0,0.38]
[1764810589112,0.2409004,93263.0,93262.0,0.38]
[1764810590006,0.209901,93258.0,93257.0,0.16092002]
[1764810590202,0.239901,93258.0,93257.0,0.08442944]
[1764810590403,0.239901,93258.0,93257.0,0.37]
[1764810591620,0.241901,93258.0,93257.0,0.37]
[1764810596507,0.19918,93257.0,93256.0,0.01648002]
[1764810596707,0.25648,93254.0,93253.0,0.00016085]
[1764810596914,0.28648,93254.0,93253.0,0.00016085]
[1764810597510,0.28648,93254.0,93253.0,0.01717057]
[1764810598322,0.28848,93254.0,93253.0,0.36717057]
[1764810598720,0.28848,93254.0,93253.0,0.46555057]
[1764810598920,0.28848,93254.0,93253.0,0.36717057]
[1764810599422,0.032,93254.0,93253.0,0.56147057]
[1764810600514,0.28848,93254.0,93253.0,0.56147057]
[1764810600715,0.28648,93254.0,93253.0,0.56247057]
[1764810600915,0.28648,93254.0,93253.0,0.36817057]
[1764810601717,0.28648,93254.0,93253.0,0.01817057]
[1764810601925,0.28848,93254.0,93253.0,0.01817057]
[1764810602724,0.28848,93254.0,93253.0,0.44717057]
[1764810603210,0.12925,93254.0,93253.0,0.64147057]
[1764810604715,0.23118,93254.0,93253.0,0.64147057]
[1764810604919,0.22918,93254.0,93253.0,0.64147057]
[1764810605321,0.22918,93254.0,93253.0,0.64247057]
[1764810606315,0.03,93254.0,93253.0,0.65319207]
[1764810606620,0.031,93254.0,93253.0,0.65219207]
[1764810607524,0.031,93254.0,93253.0,0.75219207]
[1764810607723,0.0107187,93278.0,93263.0,0.0107204]
[1764810607930,0.05504,93296.0,93263.0,0.0107204]
[1764810607931,0.03016085,93267.0,93266.0,0.19511]
[1764810608222,0.15284,93288.0,93287.0,0.15266]
[1764810608424,0.2851375,93288.0,93287.0,0.56266]
[1764810609021,0.2851375,93288.0,93287.0,0.64758533]
[1764810609631,0.2891375,93288.0,93287.0,0.64758533]
[1764810610422,0.3061375,93288.0,93287.0,0.64858533]
[1764810610618,0.3061375,93288.0,93287.0,0.001]
[1764810612927,0.3061375,93288.0,93287.0,0.411]
[1764810613119,0.3061375,93288.0,93287.0,0.56366]
[1764810613318,0.0617175,93288.0,93287.0,0.56366]
[1764810614025,0.1595175,93288.0,93287.0,0.56366]
[1764810614224,0.1595175,93288.0,93287.0,0.62101511]
[1764810614432,0.051,93288.0,93287.0,0.66366]
[1764810615533,0.00016085,93297.0,93296.0,0.0953766]
[1764810615729,0.03016085,93297.0,93296.0,0.4953766]
[1764810616532,0.03016085,93297.0,93296.0,0.5953766]
[1764810616729,0.03116085,93297.0,93296.0,0.5953766]
[1764810617734,0.03116085,93297.0,93296.0,0.5963766]
[1764810617936,0.05,93307.0,93306.0,0.0107154]
[1764810618136,0.21938,93307.0,93306.0,0.4]